[Event "Live Chess"]
[Site "Chess.com"]
[Date "2023.05.20"]
[Round "-"]
[White "kevinmilleruk"]
[Black "JoshMcK"]
[Result "0-1"]
[WhiteElo "1150"]
[BlackElo "1578"]
[TimeControl "300"]
[EndTime "13:46:11 PDT"]
[Termination "JoshMcK won by resignation"]

1. c4 {[%clk 0:04:59.4]} 1... Nf6 {[%clk 0:04:58]} 2. Nc3 {[%clk 0:04:57.8]}
2... g6 {[%clk 0:04:57.4]} 3. g3 {[%clk 0:04:56.5]} 3... Bg7 {[%clk 0:04:56.8]}
4. Bg2 {[%clk 0:04:55.9]} 4... O-O {[%clk 0:04:55.5]} 5. Nf3 {[%clk 0:04:54.6]}
5... c6 {[%clk 0:04:54.9]} 6. O-O {[%clk 0:04:53.4]} 6... d6 {[%clk 0:04:54.8]}
7. d4 {[%clk 0:04:52.4]} 7... Nbd7 {[%clk 0:04:53.7]} 8. Bg5 {[%clk 0:04:51.4]}
8... a6 {[%clk 0:04:50.3]} 9. b4 {[%clk 0:04:50]} 9... Re8 {[%clk 0:04:39.9]}
10. e3 {[%clk 0:04:48.2]} 10... Qc7 {[%clk 0:04:38.7]} 11. b5 {[%clk 0:04:39.8]}
11... axb5 {[%clk 0:04:36.8]} 12. cxb5 {[%clk 0:04:38.6]} 12... cxb5 {[%clk
0:04:35.5]} 13. Nxb5 {[%clk 0:04:37.5]} 13... Qc4 {[%clk 0:04:32.2]} 14. a4
{[%clk 0:04:34]} 14... Ne4 {[%clk 0:04:30.3]} 15. Bh4 {[%clk 0:04:23.2]} 15...
Nb6 {[%clk 0:04:27.5]} 16. Qc1 {[%clk 0:04:09.9]} 16... Qxc1 {[%clk 0:04:24.1]}
17. Rfxc1 {[%clk 0:04:08.3]} 17... Rxa4 {[%clk 0:04:21.1]} 18. Nd2 {[%clk
0:04:03.7]} 18... Rxa1 {[%clk 0:04:13.4]} 19. Rxa1 {[%clk 0:04:01.5]} 19... Nxd2
{[%clk 0:04:12.3]} 20. Nc7 {[%clk 0:03:44.5]} 20... Kf8 {[%clk 0:03:20.7]} 21.
Nxe8 {[%clk 0:03:42.3]} 21... Kxe8 {[%clk 0:03:20.6]} 22. Ra7 {[%clk 0:03:31.2]}
22... f6 {[%clk 0:03:18]} 23. Bxb7 {[%clk 0:03:29.5]} 23... Bxb7 {[%clk
0:03:16.5]} 24. Rxb7 {[%clk 0:03:28.1]} 24... Nd5 {[%clk 0:03:14.6]} 25. e4
{[%clk 0:03:21.5]} 25... Nc3 {[%clk 0:03:08.1]} 26. Rb8+ {[%clk 0:03:13.4]}
26... Kf7 {[%clk 0:03:05]} 27. e5 {[%clk 0:03:12.2]} 27... g5 {[%clk 0:03:02.7]}
28. exf6 {[%clk 0:03:05.3]} 28... Bxf6 {[%clk 0:03:00]} 29. Bxg5 {[%clk
0:03:01.2]} 29... Nf3+ {[%clk 0:02:57.6]} 30. Kg2 {[%clk 0:02:56.6]} 30... Nxg5
{[%clk 0:02:55.9]} 31. f4 {[%clk 0:02:55.5]} 31... Nge4 {[%clk 0:02:52.9]} 32.
g4 {[%clk 0:02:54]} 32... Bxd4 {[%clk 0:02:51.2]} 33. Rh8 {[%clk 0:02:48.8]}
33... Bxh8 {[%clk 0:02:47.5]} 0-1

[Event "Live Chess"]
[Site "Chess.com"]
[Date "2023.05.20"]
[Round "-"]
[White "Reggie016"]
[Black "jennybobby44"]
[Result "0-1"]
[WhiteElo "1070"]
[BlackElo "1848"]
[TimeControl "300"]
[EndTime "13:46:12 PDT"]
[Termination "jennybobby44 won by resignation"]

1. e4 {[%clk 0:04:59.5]} 1... c5 {[%clk 0:04:59]} 2. c3 {[%clk 0:04:56.2]} 2...
d5 {[%clk 0:04:58.4]} 3. exd5 {[%clk 0:04:54.8]} 3... Nf6 {[%clk 0:04:58]} 4. d4
{[%clk 0:04:52.1]} 4... cxd4 {[%clk 0:04:54.6]} 5. cxd4 {[%clk 0:04:50.5]} 5...
Nxd5 {[%clk 0:04:53.9]} 6. Nf3 {[%clk 0:04:48.2]} 6... g6 {[%clk 0:04:53]} 7.
Bc4 {[%clk 0:04:46.1]} 7... Bg7 {[%clk 0:04:51.4]} 8. O-O {[%clk 0:04:42.9]}
8... O-O {[%clk 0:04:50.6]} 9. Be3 {[%clk 0:04:36.6]} 9... Nxe3 {[%clk
0:04:49.5]} 10. fxe3 {[%clk 0:04:35.7]} 10... a6 {[%clk 0:04:49.2]} 11. Qb3
{[%clk 0:04:28.2]} 11... b5 {[%clk 0:04:47.9]} 12. Bd5 {[%clk 0:04:25.8]} 12...
Ra7 {[%clk 0:04:44.6]} 13. Ng5 {[%clk 0:04:21.9]} 13... e6 {[%clk 0:04:38.6]}
14. Be4 {[%clk 0:03:57.8]} 14... Qxg5 {[%clk 0:04:37.1]} 0-1

[Event "Live Chess"]
[Site "Chess.com"]
[Date "2023.05.20"]
[Round "-"]
[White "LL220284LL"]
[Black "howitzer14"]
[Result "0-1"]
[WhiteElo "2391"]
[BlackElo "2904"]
[TimeControl "300"]
[EndTime "13:46:17 PDT"]
[Termination "howitzer14 won by resignation"]

1. Nf3 {[%clk 0:04:54.2]} 1... d5 {[%clk 0:04:56.1]} 2. b3 {[%clk 0:04:50.6]}
2... Bg4 {[%clk 0:04:54.3]} 3. Bb2 {[%clk 0:04:50.5]} 3... Bxf3 {[%clk
0:04:50.3]} 4. exf3 {[%clk 0:04:49.7]} 4... Nf6 {[%clk 0:04:49.3]} 5. d4 {[%clk
0:04:45.7]} 5... g6 {[%clk 0:04:42.9]} 6. Bd3 {[%clk 0:04:45]} 6... Bg7 {[%clk
0:04:42.3]} 7. O-O {[%clk 0:04:44.6]} 7... O-O {[%clk 0:04:41.8]} 8. Nd2 {[%clk
0:04:43.1]} 8... Nfd7 {[%clk 0:04:38.2]} 9. Re1 {[%clk 0:04:42]} 9... c5 {[%clk
0:04:36.4]} 10. Qc1 {[%clk 0:04:40]} 10... cxd4 {[%clk 0:04:34.7]} 11. Nf1
{[%clk 0:04:38.6]} 11... Nc6 {[%clk 0:04:33.3]} 12. Ng3 {[%clk 0:04:36.4]} 12...
e5 {[%clk 0:04:31.4]} 13. h4 {[%clk 0:04:35.4]} 13... Qxh4 {[%clk 0:04:29.9]}
14. c3 {[%clk 0:04:29.5]} 14... Rac8 {[%clk 0:04:23.7]} 15. cxd4 {[%clk
0:04:24.3]} 15... Nxd4 {[%clk 0:04:20.6]} 16. Qd2 {[%clk 0:04:19.9]} 16... Nc5
{[%clk 0:04:19.4]} 17. Bf1 {[%clk 0:04:18.6]} 17... Nce6 {[%clk 0:04:14.5]} 18.
Rac1 {[%clk 0:04:11.7]} 18... Bh6 {[%clk 0:04:03]} 0-1

[Event "Live Chess"]
[Site "Chess.com"]
[Date "2023.05.20"]
[Round "-"]
[White "wadsy27"]
[Black "AbilifyXL"]
[Result "1-0"]
[WhiteElo "2540"]
[BlackElo "1950"]
[TimeControl "300"]
[EndTime "13:46:21 PDT"]
[Termination "wadsy27 won by resignation"]

1. d4 {[%clk 0:04:58.1]} 1... d5 {[%clk 0:04:59]} 2. c4 {[%clk 0:04:57.2]} 2...
c6 {[%clk 0:04:58.3]} 3. Nf3 {[%clk 0:04:51.3]} 3... Nf6 {[%clk 0:04:54.8]} 4.
g3 {[%clk 0:04:50.6]} 4... Bf5 {[%clk 0:04:51.3]} 5. Bg2 {[%clk 0:04:49.6]} 5...
e6 {[%clk 0:04:50.4]} 6. O-O {[%clk 0:04:48.1]} 6... Nbd7 {[%clk 0:04:49]} 7.
Nc3 {[%clk 0:04:46.8]} 7... Be7 {[%clk 0:04:48.1]} 8. Nd2 {[%clk 0:04:45.9]}
8... O-O {[%clk 0:04:46.2]} 9. e4 {[%clk 0:04:45.2]} 9... dxe4 {[%clk
0:04:45.4]} 10. Ndxe4 {[%clk 0:04:45.1]} 10... Nxe4 {[%clk 0:04:44.5]} 11. Nxe4
{[%clk 0:04:44.6]} 11... Nf6 {[%clk 0:04:43.8]} 12. Nc3 {[%clk 0:04:43.3]} 12...
h6 {[%clk 0:04:41.7]} 13. h3 {[%clk 0:04:41.3]} 13... Qc7 {[%clk 0:04:40.2]} 14.
Bf4 {[%clk 0:04:39.5]} 14... Bd6 {[%clk 0:04:39.3]} 15. Bxd6 {[%clk 0:04:36.4]}
15... Qxd6 {[%clk 0:04:39.2]} 16. Qd2 {[%clk 0:04:27.5]} 16... Rad8 {[%clk
0:04:36.7]} 17. Rfd1 {[%clk 0:04:26.5]} 17... Rfe8 {[%clk 0:04:34.5]} 18. Qe3
{[%clk 0:04:17.5]} 18... a6 {[%clk 0:04:32.6]} 19. c5 {[%clk 0:04:09.6]} 19...
Qc7 {[%clk 0:04:28.7]} 20. Re1 {[%clk 0:04:07]} 20... Rd7 {[%clk 0:04:26]} 21.
Rad1 {[%clk 0:03:58.2]} 21... Red8 {[%clk 0:04:24.5]} 22. Na4 {[%clk 0:03:54.4]}
22... Bc2 {[%clk 0:04:21.2]} 23. Nb6 {[%clk 0:03:51.6]} 23... Bxd1 {[%clk
0:04:18]} 24. Nxd7 {[%clk 0:03:48.7]} 24... Qxd7 {[%clk 0:04:14.9]} 25. Rxd1
{[%clk 0:03:47.9]} 25... Nd5 {[%clk 0:04:13.2]} 26. Qe5 {[%clk 0:03:39.2]} 26...
Nf6 {[%clk 0:04:04.4]} 27. b4 {[%clk 0:03:31.2]} 27... Nd5 {[%clk 0:03:54.2]}
28. a3 {[%clk 0:03:29]} 28... Nc3 {[%clk 0:03:52.9]} 29. Rd3 {[%clk 0:03:24.3]}
29... Nb5 {[%clk 0:03:51.7]} 30. g4 {[%clk 0:02:58.3]} 30... Nxd4 {[%clk
0:03:50.2]} 31. Kh1 {[%clk 0:02:56.1]} 31... f6 {[%clk 0:03:46.1]} 32. Qe4
{[%clk 0:02:52.1]} 32... e5 {[%clk 0:03:43.8]} 33. f4 {[%clk 0:02:49]} 33... Qd5
{[%clk 0:03:01.1]} 34. Qe3 {[%clk 0:02:26.4]} 34... Qe6 {[%clk 0:02:32.2]} 35.
a4 {[%clk 0:01:50.8]} 35... Re8 {[%clk 0:02:29.7]} 36. fxe5 {[%clk 0:01:34.2]}
36... fxe5 {[%clk 0:02:28.4]} 37. Qe4 {[%clk 0:01:28.6]} 37... Qf6 {[%clk
0:02:18.2]} 38. Rxd4 {[%clk 0:01:24.6]} 38... exd4 {[%clk 0:02:16.6]} 39. Qxe8+
{[%clk 0:01:23.6]} 39... Kh7 {[%clk 0:02:16.1]} 40. Be4+ {[%clk 0:01:22.5]}
40... g6 {[%clk 0:02:15.2]} 41. Qd7+ {[%clk 0:00:56.5]} 41... Kh8 {[%clk
0:02:09.9]} 42. Qc8+ {[%clk 0:00:55.6]} 42... Kh7 {[%clk 0:02:05.3]} 43. Qxb7+
{[%clk 0:00:54.7]} 43... Kh8 {[%clk 0:02:04.4]} 44. Qc8+ {[%clk 0:00:53.8]}
44... Kh7 {[%clk 0:02:02.9]} 45. Qd7+ {[%clk 0:00:52.9]} 45... Kh8 {[%clk
0:02:01.9]} 46. Qe8+ {[%clk 0:00:51.6]} 46... Kh7 {[%clk 0:02:00]} 47. Qxg6+
{[%clk 0:00:47.9]} 47... Qxg6 {[%clk 0:01:59]} 48. Bxg6+ {[%clk 0:00:47.8]}
48... Kxg6 {[%clk 0:01:58.2]} 49. Kg2 {[%clk 0:00:47.6]} 49... Kf6 {[%clk
0:01:57.5]} 50. Kf3 {[%clk 0:00:45]} 50... Ke5 {[%clk 0:01:56.8]} 51. h4 {[%clk
0:00:43.2]} 51... d3 {[%clk 0:01:54.2]} 52. Ke3 {[%clk 0:00:42.3]} 52... d2
{[%clk 0:01:53.5]} 53. Kxd2 {[%clk 0:00:41.6]} 53... Kf4 {[%clk 0:01:53]} 54. b5
{[%clk 0:00:38.4]} 54... axb5 {[%clk 0:01:48.1]} 55. axb5 {[%clk 0:00:38.3]}
55... cxb5 {[%clk 0:01:47.2]} 56. c6 {[%clk 0:00:37.6]} 1-0

[Event "Live Chess"]
[Site "Chess.com"]
[Date "2023.05.20"]
[Round "-"]
[White "ProfPoisson"]
[Black "mliszewski"]
[Result "1-0"]
[WhiteElo "1142"]
[BlackElo "1862"]
[TimeControl "300"]
[EndTime "13:46:33 PDT"]
[Termination "ProfPoisson won by checkmate"]

1. e4 {[%clk 0:04:58]} 1... c6 {[%clk 0:04:58.8]} 2. d4 {[%clk 0:04:55.7]} 2...
d5 {[%clk 0:04:58.7]} 3. exd5 {[%clk 0:04:54]} 3... cxd5 {[%clk 0:04:57.8]} 4.
c4 {[%clk 0:04:53.4]} 4... Nf6 {[%clk 0:04:56.4]} 5. Nc3 {[%clk 0:04:50.4]} 5...
g6 {[%clk 0:04:54.5]} 6. Qb3 {[%clk 0:04:44.4]} 6... Bg7 {[%clk 0:04:52.5]} 7.
Nxd5 {[%clk 0:04:35.5]} 7... Nxd5 {[%clk 0:04:48.6]} 8. cxd5 {[%clk 0:04:27.9]}
8... Bxd4 {[%clk 0:04:48.1]} 9. Qa4+ {[%clk 0:04:22.2]} 9... Nd7 {[%clk
0:04:41.4]} 10. Qxd4 {[%clk 0:04:20.2]} 10... O-O {[%clk 0:04:40.7]} 11. Bh6
{[%clk 0:04:16.1]} 11... f6 {[%clk 0:04:33.2]} 12. Bxf8 {[%clk 0:04:11.3]} 12...
Qxf8 {[%clk 0:04:31.2]} 13. Nf3 {[%clk 0:04:08.5]} 13... e5 {[%clk 0:04:26.9]}
14. dxe6 {[%clk 0:04:04.9]} 14... Nc5 {[%clk 0:04:24.3]} 15. Bc4 {[%clk
0:03:56.3]} 15... Bxe6 {[%clk 0:04:21.7]} 16. Bxe6+ {[%clk 0:03:51.4]} 16...
Nxe6 {[%clk 0:04:20.5]} 17. Qd5 {[%clk 0:03:47.6]} 17... Re8 {[%clk 0:04:18]}
18. O-O {[%clk 0:03:44]} 18... Kg7 {[%clk 0:04:17.4]} 19. Qxb7+ {[%clk
0:03:39.4]} 19... Re7 {[%clk 0:04:16.5]} 20. Qb3 {[%clk 0:03:30.7]} 20... Nf4
{[%clk 0:04:14.9]} 21. Rae1 {[%clk 0:03:20.2]} 21... Rc7 {[%clk 0:04:10.3]} 22.
g3 {[%clk 0:02:55.8]} 22... Nh3+ {[%clk 0:03:50.2]} 23. Kg2 {[%clk 0:02:52.8]}
23... Qc8 {[%clk 0:03:49.4]} 24. Nd4 {[%clk 0:02:40.7]} 24... Ng5 {[%clk
0:03:46.2]} 25. Ne6+ {[%clk 0:02:33.4]} 25... Nxe6 {[%clk 0:03:44.5]} 26. Qxe6
{[%clk 0:02:30.9]} 26... Qa8+ {[%clk 0:03:43.9]} 27. Qe4 {[%clk 0:02:19.1]}
27... Qb8 {[%clk 0:03:41.9]} 28. Kg1 {[%clk 0:02:08.7]} 28... Qxb2 {[%clk
0:03:35.1]} 29. Qf4 {[%clk 0:01:43.7]} 29... Qb6 {[%clk 0:03:28.3]} 30. Rb1
{[%clk 0:01:40.1]} 30... Qa5 {[%clk 0:03:18.2]} 31. Rfc1 {[%clk 0:01:31.4]}
31... Re7 {[%clk 0:03:15]} 32. Rb4 {[%clk 0:01:09.6]} 32... g5 {[%clk
0:02:54.2]} 33. Qd6 {[%clk 0:01:02.8]} 33... Rf7 {[%clk 0:02:43.2]} 34. Rbc4
{[%clk 0:00:59.2]} 34... Qxa2 {[%clk 0:02:38.8]} 35. Rc7 {[%clk 0:00:55.9]}
35... Qb2 {[%clk 0:02:29.1]} 36. Rxf7+ {[%clk 0:00:51.8]} 36... Kxf7 {[%clk
0:02:28.8]} 37. Rc7+ {[%clk 0:00:49.2]} 37... Kg6 {[%clk 0:02:28.3]} 38. Qd3+
{[%clk 0:00:42.4]} 38... Kh5 {[%clk 0:02:20.8]} 39. Rxh7+ {[%clk 0:00:39.4]}
39... Kg4 {[%clk 0:02:20.5]} 40. Qe4# {[%clk 0:00:33.2]} 1-0

[Event "Live Chess"]
[Site "Chess.com"]
[Date "2023.05.20"]
[Round "-"]
[White "JoeRoot66"]
[Black "Bob2pen"]
[Result "0-1"]
[WhiteElo "1907"]
[BlackElo "1822"]
[TimeControl "300"]
[EndTime "13:46:33 PDT"]
[Termination "Bob2pen won by resignation"]

1. e4 {[%clk 0:04:59]} 1... e6 {[%clk 0:04:57.5]} 2. d4 {[%clk 0:04:56.4]} 2...
d5 {[%clk 0:04:55.9]} 3. Bd3 {[%clk 0:04:56.1]} 3... Nf6 {[%clk 0:04:53.7]} 4.
e5 {[%clk 0:04:53]} 4... Nfd7 {[%clk 0:04:51.8]} 5. f4 {[%clk 0:04:52.7]} 5...
c5 {[%clk 0:04:50.7]} 6. c3 {[%clk 0:04:52.4]} 6... Nc6 {[%clk 0:04:49.4]} 7.
Nf3 {[%clk 0:04:51]} 7... Be7 {[%clk 0:04:48.3]} 8. O-O {[%clk 0:04:32.7]} 8...
f5 {[%clk 0:04:46.5]} 9. Ng5 {[%clk 0:04:13.1]} 9... Bxg5 {[%clk 0:04:43.4]} 10.
Qh5+ {[%clk 0:03:57.7]} 10... g6 {[%clk 0:04:40.7]} 11. Qxg5 {[%clk 0:03:56.8]}
11... Qxg5 {[%clk 0:04:39.4]} 12. fxg5 {[%clk 0:03:56.7]} 12... cxd4 {[%clk
0:04:38.3]} 13. cxd4 {[%clk 0:03:54.3]} 13... Nxd4 {[%clk 0:04:36.9]} 0-1

[Event "Live Chess"]
[Site "Chess.com"]
[Date "2023.05.20"]
[Round "-"]
[White "CheckThis4"]
[Black "mightysmasher"]
[Result "1-0"]
[WhiteElo "2548"]
[BlackElo "2087"]
[TimeControl "300"]
[EndTime "13:46:38 PDT"]
[Termination "CheckThis4 won by checkmate"]

1. Nf3 {[%clk 0:04:57.1]} 1... d5 {[%clk 0:04:56]} 2. d4 {[%clk 0:04:53.6]} 2...
c5 {[%clk 0:04:54.6]} 3. e3 {[%clk 0:04:50]} 3... Nc6 {[%clk 0:04:53.8]} 4. Bb5
{[%clk 0:04:47.2]} 4... Bd7 {[%clk 0:04:52.5]} 5. O-O {[%clk 0:04:46.1]} 5... e6
{[%clk 0:04:51.3]} 6. c4 {[%clk 0:04:44.8]} 6... Nf6 {[%clk 0:04:49.9]} 7. Nc3
{[%clk 0:04:42.6]} 7... a6 {[%clk 0:04:48.2]} 8. Bxc6 {[%clk 0:04:39.5]} 8...
Bxc6 {[%clk 0:04:46.5]} 9. Ne5 {[%clk 0:04:38.4]} 9... Bd6 {[%clk 0:04:44.7]}
10. Nxc6 {[%clk 0:04:37.5]} 10... bxc6 {[%clk 0:04:44]} 11. dxc5 {[%clk
0:04:36.4]} 11... Bxc5 {[%clk 0:04:42.9]} 12. Qa4 {[%clk 0:04:34.3]} 12... O-O
{[%clk 0:04:40.7]} 13. Qxc6 {[%clk 0:04:26.7]} 13... Rc8 {[%clk 0:04:38.8]} 14.
Qxa6 {[%clk 0:04:25.7]} 14... dxc4 {[%clk 0:04:37.7]} 15. Qxc4 {[%clk 0:04:23]}
15... Bxe3 {[%clk 0:04:36.1]} 16. Qe2 {[%clk 0:04:21.7]} 16... Bc5 {[%clk
0:04:33.1]} 17. Rd1 {[%clk 0:04:16.4]} 17... Qc7 {[%clk 0:04:31.3]} 18. Be3
{[%clk 0:04:10.6]} 18... Bd6 {[%clk 0:04:28]} 19. h3 {[%clk 0:04:09.1]} 19...
Qb8 {[%clk 0:04:26.2]} 20. Rac1 {[%clk 0:04:07.2]} 20... Rfd8 {[%clk 0:04:24.2]}
21. Nb5 {[%clk 0:04:01.8]} 21... Bh2+ {[%clk 0:04:21.3]} 22. Kh1 {[%clk
0:04:00.1]} 22... Be5 {[%clk 0:04:19.7]} 23. Rxc8 {[%clk 0:03:53]} 23... Rxc8
{[%clk 0:04:16.8]} 24. a4 {[%clk 0:03:49.8]} 24... Ne4 {[%clk 0:04:14.6]} 25. a5
{[%clk 0:03:31.7]} 25... f5 {[%clk 0:04:12.2]} 26. a6 {[%clk 0:03:28.8]} 26...
h6 {[%clk 0:04:08.6]} 27. a7 {[%clk 0:03:27.9]} 27... Qb7 {[%clk 0:04:06.7]} 28.
Ra1 {[%clk 0:02:58.5]} 28... Bf6 {[%clk 0:03:37.8]} 29. Kg1 {[%clk 0:02:38.4]}
29... g5 {[%clk 0:03:28.4]} 30. f3 {[%clk 0:02:34.5]} 30... Ng3 {[%clk
0:03:25.4]} 31. Qd3 {[%clk 0:02:33.4]} 31... Qc6 {[%clk 0:03:18.1]} 32. Nc3
{[%clk 0:01:48.8]} 32... f4 {[%clk 0:03:14]} 33. Bf2 {[%clk 0:01:45.1]} 33...
Ra8 {[%clk 0:03:03]} 34. Bxg3 {[%clk 0:01:43.1]} 34... fxg3 {[%clk 0:03:00.6]}
35. Qg6+ {[%clk 0:01:37.5]} 35... Bg7 {[%clk 0:02:59]} 36. Kh1 {[%clk
0:01:30.9]} 36... Qb6 {[%clk 0:02:32.8]} 37. Ne4 {[%clk 0:01:20]} 37... Qxb2
{[%clk 0:02:23.8]} 38. Rd1 {[%clk 0:01:16]} 38... Qe5 {[%clk 0:02:10.5]} 39. Kg1
{[%clk 0:00:54.9]} 39... Qf4 {[%clk 0:01:58.8]} 40. Qxe6+ {[%clk 0:00:45.3]}
40... Kh8 {[%clk 0:01:56.9]} 41. Qd7 {[%clk 0:00:42.5]} 41... Qe3+ {[%clk
0:01:54.3]} 42. Kh1 {[%clk 0:00:40.9]} 42... Rxa7 {[%clk 0:01:46.4]} 43. Qe8+
{[%clk 0:00:39.1]} 43... Kh7 {[%clk 0:01:42.9]} 44. Nf6+ {[%clk 0:00:38.3]}
44... Bxf6 {[%clk 0:01:40.7]} 45. Qxe3 {[%clk 0:00:37.9]} 45... Re7 {[%clk
0:01:35]} 46. Qd3+ {[%clk 0:00:36.7]} 46... Kg7 {[%clk 0:01:31.7]} 47. Qd6
{[%clk 0:00:35.9]} 47... h5 {[%clk 0:01:29]} 48. Qxg3 {[%clk 0:00:34.4]} 48...
Re2 {[%clk 0:01:26.2]} 49. h4 {[%clk 0:00:32.9]} 49... Kg6 {[%clk 0:01:22.6]}
50. hxg5 {[%clk 0:00:31.9]} 50... Be5 {[%clk 0:01:21.5]} 51. f4 {[%clk
0:00:30.7]} 51... Bg7 {[%clk 0:01:18.3]} 52. Qd3+ {[%clk 0:00:29.4]} 52... Kf7
{[%clk 0:01:13.7]} 53. Qxe2 {[%clk 0:00:28.1]} 53... h4 {[%clk 0:01:12.3]} 54.
Rd7+ {[%clk 0:00:26.7]} 54... Kf8 {[%clk 0:01:11]} 55. Qh5 {[%clk 0:00:24.6]}
55... Kg8 {[%clk 0:01:05.6]} 56. Qf7+ {[%clk 0:00:23.6]} 56... Kh8 {[%clk
0:01:04.4]} 57. Qxg7# {[%clk 0:00:23.3]} 1-0

[Event "Live Chess"]
[Site "Chess.com"]
[Date "2023.05.20"]
[Round "-"]
[White "YrrriKharkiv"]
[Black "SupremeTactician"]
[Result "0-1"]
[WhiteElo "2066"]
[BlackElo "2377"]
[TimeControl "300"]
[EndTime "13:46:46 PDT"]
[Termination "SupremeTactician won on time"]

1. d4 {[%clk 0:04:52.5]} 1... Nf6 {[%clk 0:04:58.8]} 2. Nf3 {[%clk 0:04:50.9]}
2... e6 {[%clk 0:04:57.9]} 3. c4 {[%clk 0:04:50.4]} 3... Bb4+ {[%clk 0:04:55.8]}
4. Bd2 {[%clk 0:04:48.9]} 4... Bxd2+ {[%clk 0:04:55.1]} 5. Qxd2 {[%clk
0:04:47.7]} 5... O-O {[%clk 0:04:51.1]} 6. g3 {[%clk 0:04:46.9]} 6... d5 {[%clk
0:04:50.2]} 7. Bg2 {[%clk 0:04:44.8]} 7... Ne4 {[%clk 0:04:47.5]} 8. Qc2 {[%clk
0:04:43.6]} 8... Nd7 {[%clk 0:04:42.1]} 9. cxd5 {[%clk 0:04:41.8]} 9... exd5
{[%clk 0:04:42]} 10. O-O {[%clk 0:04:40.8]} 10... Ndf6 {[%clk 0:04:41.1]} 11.
Nc3 {[%clk 0:04:39.4]} 11... Bf5 {[%clk 0:04:39.3]} 12. Qb3 {[%clk 0:04:37.5]}
12... Rb8 {[%clk 0:04:37.4]} 13. Rfd1 {[%clk 0:04:31.1]} 13... Nxc3 {[%clk
0:04:35]} 14. bxc3 {[%clk 0:04:29.5]} 14... c6 {[%clk 0:04:32.6]} 15. c4 {[%clk
0:04:22.3]} 15... dxc4 {[%clk 0:04:29.7]} 16. Qxc4 {[%clk 0:04:20.5]} 16... Be6
{[%clk 0:04:29]} 17. Qa4 {[%clk 0:04:15.6]} 17... a6 {[%clk 0:04:26.4]} 18. Rab1
{[%clk 0:04:10.4]} 18... Qd6 {[%clk 0:04:19.9]} 19. Rb2 {[%clk 0:04:03.7]} 19...
Nd5 {[%clk 0:04:14.5]} 20. Qc2 {[%clk 0:03:52.6]} 20... Rfd8 {[%clk 0:04:10.9]}
21. e4 {[%clk 0:03:46.2]} 21... Nc7 {[%clk 0:04:05.2]} 22. Rdb1 {[%clk
0:03:36.5]} 22... Nb5 {[%clk 0:04:02.1]} 23. Rd1 {[%clk 0:03:12.2]} 23... Qe7
{[%clk 0:03:53.4]} 24. a4 {[%clk 0:03:06.9]} 24... Nc7 {[%clk 0:03:47.6]} 25.
Rdb1 {[%clk 0:03:00.5]} 25... Ne8 {[%clk 0:03:43.6]} 26. h3 {[%clk 0:02:55.5]}
26... Nd6 {[%clk 0:03:40.7]} 27. Ne5 {[%clk 0:02:50.8]} 27... Rbc8 {[%clk
0:03:12.5]} 28. Qc5 {[%clk 0:02:09.9]} 28... Qc7 {[%clk 0:03:04.3]} 29. d5
{[%clk 0:02:00.8]} 29... cxd5 {[%clk 0:03:00.9]} 30. Qxc7 {[%clk 0:01:59.1]}
30... Rxc7 {[%clk 0:03:00.2]} 31. exd5 {[%clk 0:01:58.4]} 31... Bf5 {[%clk
0:02:59.5]} 32. Rd1 {[%clk 0:01:54.9]} 32... f6 {[%clk 0:02:58.6]} 33. Nf3
{[%clk 0:01:46.4]} 33... Be4 {[%clk 0:02:36.5]} 34. Rb4 {[%clk 0:01:24.9]} 34...
Rc4 {[%clk 0:02:15.5]} 35. Rxc4 {[%clk 0:01:17.6]} 35... Nxc4 {[%clk 0:02:15.4]}
36. Nd4 {[%clk 0:00:58.4]} 36... Bxg2 {[%clk 0:02:12.5]} 37. Kxg2 {[%clk
0:00:56.2]} 37... Rxd5 {[%clk 0:02:12.1]} 38. h4 {[%clk 0:00:42.9]} 38... Ne5
{[%clk 0:02:05.8]} 39. Rd2 {[%clk 0:00:39.9]} 39... Nc6 {[%clk 0:02:01.9]} 40.
Nf3 {[%clk 0:00:37.8]} 40... Rxd2 {[%clk 0:02:01.2]} 41. Nxd2 {[%clk 0:00:37.5]}
41... Kf7 {[%clk 0:02:00.8]} 42. Kf3 {[%clk 0:00:36]} 42... Ke6 {[%clk
0:01:59.8]} 43. Ke4 {[%clk 0:00:35.7]} 43... Kd6 {[%clk 0:01:59.2]} 44. f4
{[%clk 0:00:33.5]} 44... Kc5 {[%clk 0:01:57.8]} 45. g4 {[%clk 0:00:32]} 45...
Kb4 {[%clk 0:01:55.7]} 46. g5 {[%clk 0:00:31.3]} 46... fxg5 {[%clk 0:01:49.1]}
47. hxg5 {[%clk 0:00:30]} 47... Kxa4 {[%clk 0:01:44.9]} 48. f5 {[%clk
0:00:29.3]} 48... b5 {[%clk 0:01:43.6]} 49. f6 {[%clk 0:00:28.3]} 49... gxf6
{[%clk 0:01:43.3]} 50. gxf6 {[%clk 0:00:27.1]} 50... Nd8 {[%clk 0:01:43]} 51.
Ke5 {[%clk 0:00:22.4]} 51... b4 {[%clk 0:01:42.1]} 52. Kd6 {[%clk 0:00:20.7]}
52... Nf7+ {[%clk 0:01:40.9]} 53. Ke7 {[%clk 0:00:19.7]} 53... Ng5 {[%clk
0:01:40.3]} 54. Ne4 {[%clk 0:00:17.2]} 54... Nxe4 {[%clk 0:01:36]} 55. f7 {[%clk
0:00:16.6]} 55... b3 {[%clk 0:01:35.5]} 56. f8=Q {[%clk 0:00:15.3]} 56... b2
{[%clk 0:01:35]} 57. Qb8 {[%clk 0:00:12.1]} 57... Ka3 {[%clk 0:01:29.6]} 58. Qb6
{[%clk 0:00:08.8]} 58... Nc3 {[%clk 0:01:26.2]} 59. Qxa6+ {[%clk 0:00:08]} 59...
Kb3 {[%clk 0:01:23.6]} 60. Qb6+ {[%clk 0:00:06.8]} 60... Kc2 {[%clk 0:01:23.1]}
61. Qf2+ {[%clk 0:00:04.6]} 61... Kc1 {[%clk 0:01:22.6]} 62. Qe3+ {[%clk
0:00:03]} 62... Kc2 {[%clk 0:01:20.7]} 63. Kf7 {[%clk 0:00:00.1]} 63... b1=Q
{[%clk 0:01:19.3]} 0-1